Cogmind - Beta 13 @@@ ROGUE MODE // 2024.07.10 @ 15:18:47 Player: weedlord420 Result: Self-destructed Performance ------------- Evolutions (2) 1000 Regions Visited (5) 1000 Robots Destroyed (31) 155 Value Destroyed (617) 617 Prototype IDs (5) 100 Alien Tech Used (0) 0 Bonus (300) 300 TOTAL SCORE: 3172 Bonus ------- Aligned with FarCom 300 Cogmind --------- Core Integrity 511/550 Matter 41/300 Energy 290/290 System Corruption 10% Temperature Cool (9) Movement Treading (165) Location -8/Materials Parts ------- > --- POWER (1) -------- Improved Deuterium Engine > --- PROPULSION (3) --- Light Treads Armored Treads > --- UTILITY (5) ------ Medium Storage Unit Core Shielding > --- WEAPON (2) ------- Autogun > --- INVENTORY (10) --- Improved Deuterium Engine Improved Heat Sink Improved Terrain Scanner Light Armor Plating System Shield Mini Grenade Launcher Mini Grenade Launcher Remote Datajack Peak State ------------ > --- POWER ------------ Improved Deuterium Engine > --- PROPULSION ------- Light Treads Armored Treads > --- UTILITY ---------- Medium Storage Unit Modified TNC Propulsion Shielding Hacking Suite System Shield > --- WEAPON ----------- Autogun Remote Datajack > --- INVENTORY -------- Improved Deuterium Engine Improved Heat Sink Improved Terrain Scanner Core Shielding System Shield Autogun Autogun Mini Grenade Launcher Mini Grenade Launcher [Rating: 30] Favorites ----------- Power Deuterium Engine Engine Deuterium Engine Propulsion Light Treads Treads Light Treads Utility Medium Storage Unit Device Chronowheel Storage Medium Storage Unit Processor Modified TNC Hackware Hacking Suite Protection Core Shielding Weapon Autogun Energy Gun Medium Laser Ballistic Gun Autogun Launcher Mini Grenade Launcher Special Weapon Remote Datajack Build | -11 -10 -10 -10 -9 -8 ------- Run | Yrd Mat Min Exi Min Mat Slots Evolved 4 | . . . . . 4 Power . | . . . . . . Propulsion 1 | . . . . . 1 Utility 3 | . . . . . 3 Weapon . | . . . . . . Parts Attached 32 | 6 7 2 2 2 13 Power 4 | 1 1 1 . . 1 Engine 4 | 1 1 1 . . 1 Core . | . . . . . . Reactor . | . . . . . . Propulsion 4 | 2 1 1 . . . Treads 4 | 2 1 1 . . . Leg . | . . . . . . Wheel . | . . . . . . Hover . | . . . . . . Flight . | . . . . . . Utility 10 | 1 2 . 2 . 5 Device 1 | . . . 1 . . Storage 2 | 1 1 . . . . Processor 1 | . . . 1 . . Hackware 2 | . . . . . 2 Protection 4 | . 1 . . . 3 Artifact . | . . . . . . Weapon 14 | 2 3 . . 2 7 Energy Gun 3 | 1 1 . . . 1 Energy Cannon . | . . . . . . Ballistic Gun 8 | 1 2 . . 1 4 Ballistic Cannon . | . . . . . . Launcher 2 | . . . . 1 1 Special Weapon 1 | . . . . . 1 Impact Weapon . | . . . . . . Slashing Weapon . | . . . . . . Piercing Weapon . | . . . . . . Special Melee Weapon . | . . . . . . Unidentified Prototypes 3 | . . . 2 . 1 Parts Lost 6 | . . . . . 6 Power . | . . . . . . Propulsion . | . . . . . . Utility 4 | . . . . . 4 Weapon 2 | . . . . . 2 Highest Loss Streak 5 | . . . . . 5 To Critical Strikes 1 | . . . . . 1 Average Slot Usage (%) 92 | . 87 100 99 100 83 Engine 12 | . 13 14 14 14 9 Treads 25 | . 27 28 28 28 18 Storage 13 | . 14 14 14 14 9 Processor 5 | . . . 6 14 8 Hackware 1 | . . . . . 7 Protection 6 | . 3 14 7 . 13 Energy Gun 3 | . 8 . . . . Ballistic Gun 22 | . 19 28 28 27 17 Naked Turns . | . . . . . . Heaviest Build 28 | 14 22 26 26 25 28 Greatest Support 40 | 40 40 40 40 40 40 Greatest Overweight (x) . | . . . . . . Average Overweight (x) . | . . . . . . Largest Inventory Capacity 10 | 8 10 10 10 10 10 Average Capacity 9 | 7 9 10 10 10 10 Most Carried 10 | 5 10 10 10 10 10 Average Carried 8 | . 6 9 9 9 9 Final Capacity 10 | 8 10 10 10 10 10 Final Carried 10 | . 9 10 10 10 8 Class Distribution -------------------- 92% | Mutant 7% | Hacker-Mutant Dominant Class ---------------- Mutant | -10/Materials Mutant | -10/Mines Mutant | -10/Exiles Mutant | -9/Mines Mutant | -8/Materials Resources | -11 -10 -10 -10 -9 -8 ----------- Run | Yrd Mat Min Exi Min Mat Matter Collected 864 | 253 154 72 . 134 251 Remotely . | . . . . . . Salvage Created 947 | . 373 39 . 172 363 Parts 72 | . 25 5 . 15 27 Haulers Intercepted 1 | . 1 . . . . Recyclers Shooed . | . . . . . . Parts Field Recycled . | . . . . . . Retrieved Matter . | . . . . . . Parts Self-Destructed . | . . . . . . Prevented . | . . . . . . Kills | -11 -10 -10 -10 -9 -8 ------- Run | Yrd Mat Min Exi Min Mat Combat Hostiles Destroyed 18 | . 8 . . 5 5 Guns 15 | . 8 . . 2 5 AOE 3 | . . . . 3 . Classes Destroyed 11 | . 6 1 . 1 3 Worker 2 | . 1 1 . . . Builder 4 | . 1 . . . 3 Tunneler 1 | . . 1 . . . Hauler 1 | . 1 . . . . Recycler 2 | . . . . 2 . Operator 1 | . 1 . . . . Watcher 2 | . . . . . 2 Swarmer 8 | . 3 . . 5 . Grunt 8 | . 5 . . . 3 Brawler 1 | . . . . . 1 Sentry 1 | . . . . . 1 Best Kill Streak 5 | . 5 1 . 4 3 Combat Bots Only 5 | . 5 . . 4 2 Max Kills in Single Turn 2 | . 1 1 . 2 2 Gunslinging . | . . . . . . Exploded 2 | . . . . 2 . Melee . | . . . . . . Uniques/NPCs Destroyed . | . . . . . . Combat | -11 -10 -10 -10 -9 -8 -------- Run | Yrd Mat Min Exi Min Mat Hostile Shots Fired 113 | . 37 . . 17 59 Missed 31 | . 9 . . 7 15 Damage Taken 1131 | . 310 . . 90 731 Core 97 | . 51 . . 7 39 Absorbed by Shields . | . . . . . . Redirected to Shielding 57 | . . . . . 57 Core Remaining (%) 88 | 100 . . . 76 . Volleys Fired 105 | . 41 3 . 9 52 Largest 2 | . 2 2 . 2 2 Hottest 70 | . 70 46 . 53 53 Shots Fired 202 | . 82 6 . 18 96 Gun 190 | . 82 6 . 15 87 Cannon . | . . . . . . Launcher 6 | . . . . 3 3 Special 6 | . . . . . 6 Kinetic 149 | . 41 6 . 15 87 Thermal 41 | . 41 . . . . Explosive 6 | . . . . 3 3 Electromagnetic . | . . . . . . Robot Hit Streak 10 | . 8 8 . 6 10 Robot Miss Streak 6 | . 6 . . 2 3 Penetration Max . | . . . . . . Secondary Targets 1 | . . . . . 1 Max Gunslinging Chain 1 | . . . . . 1 Shots Hit Robots 123 | . 46 3 . 9 65 Core Hits 51 | . 21 3 . 8 19 Critical Kills 1 | . 1 . . . . Critical Parts Destroyed . | . . . . . . Critical Strikes 4 | . 4 . . . . Burn 3 | . 3 . . . . Destroy 1 | . 1 . . . . Melee Attacks . | . . . . . . Impact . | . . . . . . Slashing . | . . . . . . Piercing . | . . . . . . Sneak Attacks . | . . . . . . Combat Hostiles . | . . . . . . Follow-up Attacks . | . . . . . . Damage Inflicted 1912 | . 629 60 . 297 926 Guns 1725 | . 618 45 . 154 908 Cannons . | . . . . . . Explosions 143 | . . . . 143 . Melee . | . . . . . . Ramming 44 | . 11 15 . . 18 Kinetic 1416 | . 309 45 . 154 908 Thermal 309 | . 309 . . . . Explosive 143 | . . . . 143 . Electromagnetic . | . . . . . . Impact . | . . . . . . Slashing . | . . . . . . Piercing . | . . . . . . Highest Corruption 10 | . . . . . 10 Average Corruption 8 | . . . . . 8 Corruption Purged . | . . . . . . Corruption Blocked . | . . . . . . Effects 1 | . . . . . 1 Matter Fused 1 | . . . . . 1 Overload Shots . | . . . . . . Overflow Damage 14 | . . . . 14 . Projectiles . | . . . . . . Explosions 14 | . . . . 14 . Melee . | . . . . . . Knockbacks . | . . . . . . Impact . | . . . . . . Kinetic . | . . . . . . Secondary . | . . . . . . Self-Inflicted Damage 39 | . . . . 14 25 Shots 2 | . . . . 1 1 Rammed 7 | . 1 4 . . 2 Targets Rammed 8 | . 1 4 . . 3 Kicked . | . . . . . . Crushed 1 | . . . . . 1 Highest Temperature 132 | . 132 8 . 16 17 Average Temperature 23 | . 30 5 . 8 8 Received Heat Transfer 399 | . 120 . . . 279 Siege Activations . | . . . . . . Robots Corrupted . | . . . . . . Combat Hostiles . | . . . . . . Parts Fried . | . . . . . . Impact Corruptions . | . . . . . . Robots Melted . | . . . . . . Combat Hostiles . | . . . . . . Parts Melted . | . . . . . . Heat Transferred 1147 | . 1147 . . . . Parts Sabotaged . | . . . . . . Parts Stolen . | . . . . . . Parts Stripped . | . . . . . . Power Chain Reactions . | . . . . . . Alert | -11 -10 -10 -10 -9 -8 ------- Run | Yrd Mat Min Exi Min Mat Peak Influence 220 | . 123 10 . 120 220 Initial 9 | . . . . . 9 Average 32 | . 44 5 . 19 44 Maximum Alert Level 1 | . . . . . 1 Low Security (%) 99 | 100 100 100 . 100 96 Level 1 . | . . . . . 3 Level 2 . | . . . . . . Level 3 . | . . . . . . Level 4 . | . . . . . . Level 5 . | . . . . . . High Security . | . . . . . . Max Security . | . . . . . . Squads Dispatched 2 | . 1 1 . . . Investigation 1 | . . 1 . . . Extermination . | . . . . . . Reinforcement 1 | . 1 . . . . Assault . | . . . . . . Garrison . | . . . . . . Intercept . | . . . . . . Searches Triggered . | . . . . . . Construction Impeded . | . . . . . . Haulers Reinforced . | . . . . . . Active Scanning Responses . | . . . . . . Cargo Convoy Interrupts . | . . . . . . Stealth | -11 -10 -10 -10 -9 -8 --------- Run | Yrd Mat Min Exi Min Mat Distress Signals 1 | . . . . . 1 Communications Jammed . | . . . . . . Distress Signals . | . . . . . . Times Spotted 42 | . 21 . . 5 16 Peak Tracking Total 7 | . 3 . . 4 7 Tactical Retreats 3 | . . . . . 3 Traps | -11 -10 -10 -10 -9 -8 ------- Run | Yrd Mat Min Exi Min Mat Traps Triggered 2 | . 2 . . . . Indirectly . | . . . . . . Trap Hack Attempts . | . . . . . . Triggered . | . . . . . . Disarmed . | . . . . . . Reprogrammed . | . . . . . . Reused . | . . . . . . Traps Extracted . | . . . . . . Installed . | . . . . . . Triggered . | . . . . . . Machines | -11 -10 -10 -10 -9 -8 ---------- Run | Yrd Mat Min Exi Min Mat Machines Disabled 1 | . . . . . 1 Max in Single Turn 1 | . . . . . 1 Machines Repaired . | . . . . . . Machines Dismantled . | . . . . . . Machines Sabotaged . | . . . . . . Overloaded Fab Kills . | . . . . . . Hacking | -11 -10 -10 -10 -9 -8 --------- Run | Yrd Mat Min Exi Min Mat Machines Accessed 5 | . 2 1 1 . 1 Terminals 3 | . 2 . . . 1 Fabricators . | . . . . . . Repair Stations . | . . . . . . Recycling Units . | . . . . . . Scanalyzers . | . . . . . . Garrison Access . | . . . . . . Total Hacks 15 | . 4 1 8 . 2 Successful 12 | . 1 1 8 . 2 Failed 3 | . 3 . . . . Catastrophic . | . . . . . . Database Lockouts . | . . . . . . Manual 1 | . . . 1 . . Terminals 6 | . 4 . . . 2 Fabricators . | . . . . . . Repair Stations . | . . . . . . Recycling Units . | . . . . . . Scanalyzers . | . . . . . . Garrison Access . | . . . . . . Terminal Hacks 12 | . 1 1 8 . 2 Record 10 | . . . 8 . 2 Prototype ID Bank 1 | . 1 . . . . Open Door 1 | . . 1 . . . Fabricator Hacks . | . . . . . . Repair Station Hacks . | . . . . . . Recycling Unit Hacks . | . . . . . . Scanalyzer . | . . . . . . Garrison Access Hacks . | . . . . . . Unauthorized Hacks . | . . . . . . Terminals . | . . . . . . Fabricators . | . . . . . . Repair Stations . | . . . . . . Recycling Units . | . . . . . . Scanalyzers . | . . . . . . Garrison Access . | . . . . . . Data Cores Recovered . | . . . . . . Used . | . . . . . . Hacking Detections 3 | . 2 . . . 1 Full Trace Events 1 | . 1 . . . . Feedback Events . | . . . . . . Feedback Blocked . | . . . . . . Robot Schematics Acquired . | . . . . . . Robots Built . | . . . . . . Authchips . | . . . . . . Time . | . . . . . . Total Robot Build Rating . | . . . . . . Part Schematics Acquired . | . . . . . . Parts Built . | . . . . . . Authchips . | . . . . . . Time . | . . . . . . Total Part Build Rating . | . . . . . . Parts Repaired . | . . . . . . Time . | . . . . . . Parts Recycled . | . . . . . . Recycled Matter . | . . . . . . Retrieved Matter . | . . . . . . Retrieved Components . | . . . . . . Parts Scanalyzed . | . . . . . . Part Schematics Acquired . | . . . . . . Parts Damaged . | . . . . . . Bothacking | -11 -10 -10 -10 -9 -8 ------------ Run | Yrd Mat Min Exi Min Mat Used RIF Installer . | . . . . . . Robots Hacked 1 | . . . . . 1 Non-combat 1 | . . . . . 1 Combat . | . . . . . . Robot Hacks Applied 2 | . . . . . 2 parse_system 1 | . . . . . 1 no_distress 1 | . . . . . 1 Relay Couplers Released . | . . . . . . Fabnet Peak Effective % . | . . . . . . Robots Rewired . | . . . . . . Allies Hacked . | . . . . . . Hacks Repelled . | . . . . . . Allies | -11 -10 -10 -10 -9 -8 -------- Run | Yrd Mat Min Exi Min Mat Total Allies 3 | . . 3 . . . Largest Group 3 | . . 3 2 . . Highest-Rated Group 69 | . . 69 38 . . Highest-Rated Ally 31 | . . 31 31 . . Total Orders . | . . . . . . Ally Attacks . | . . . . . . Total Damage . | . . . . . . Kills . | . . . . . . Allies Corrupted . | . . . . . . Allies Melted . | . . . . . . Intel | -11 -10 -10 -10 -9 -8 ------- Run | Yrd Mat Min Exi Min Mat Robot Analysis Total . | . . . . . . Derelict Logs Recovered 3 | . . 2 . 1 . Drone Launches . | . . . . . . Drone Recoveries . | . . . . . . Exploration | -11 -10 -10 -10 -9 -8 ------------- Run | Yrd Mat Min Exi Min Mat Turns Passed 3934 | 59 1358 565 419 760 773 Spaces Moved 2111 | 36 723 308 246 444 354 Core 17 | 17 . . . . . Treads 2094 | 19 723 308 246 444 354 Legs . | . . . . . . Wheels . | . . . . . . Hover . | . . . . . . Flight . | . . . . . . Fastest Speed 50 | 50 160 160 165 165 165 Average Speed 162 | 108 160 164 165 165 165 Slowest Speed 165 | 160 160 165 165 165 165 Overloaded Moves . | . . . . . . Propulsion Burnouts . | . . . . . . Robots Hopped . | . . . . . . Cave-ins Triggered . | . . . . . . Exploration Rate (%) 53 | 4 91 50 60 96 21 Regions Visited 5 Branch Regions 3 Pre-discovered Areas 1 | . . 1 . . . Known Exits Taken . | . . . . . . Unknown Exits Taken 5 | 1 1 1 1 1 . Scrap Searched 3 | . . 1 . 2 . Spaces Dug 22 | . . . . . 22 Terrain Destroyed 50 | . . . . 28 22 Melee . | . . . . . . Projectile . | . . . . . . AOE 50 | . . . . 28 22 Terrain Rammed . | . . . . . . Walls Destroyed . | . . . . . . Machines Disabled . | . . . . . . Actions | -11 -10 -10 -10 -9 -8 --------- Run | Yrd Mat Min Exi Min Mat Total 2440 | 56 842 361 260 456 465 Wait 135 | 10 49 40 8 . 28 Move 2106 | 35 722 307 245 443 354 Hop . | . . . . . . Pick Up 35 | 5 17 2 2 1 8 Fast Attach 4 | 1 1 . 1 . 1 Attach 13 | 5 3 . . . 5 Detach . | . . . . . . Swap 15 | . 3 2 1 2 7 Drop 19 | . 5 3 3 1 7 Fire 105 | . 41 3 . 9 52 Melee . | . . . . . . Ram . | . . . . . . Kick . | . . . . . . Crush 8 | . 1 4 . . 3 Escape Stasis . | . . . . . . Rewire . | . . . . . . Trap . | . . . . . . Miscellaneous . | . . . . . . Route ------- -11/Scrapyard -10/Materials (discovered 5 exits: *Mat x3 / *Min x2) -10/Mines (discovered 3 exits: Mat / *Exi / [*Sub]) -10/Exiles -9/Mines (discovered 2 exits: *Mat x2) -8/Materials (discovered 1 exit: Fac) History --------- Turn | Location | Event 5 | -11/Scrapyard | Discovered new exit (range 13) 60 | -11/Scrapyard | Entered Materials 198 | -10/Materials | Discovered new exit (range 8) 209 | -10/Materials | Discovered new exit (range 16) 315 | -10/Materials | Build established: Mutant 441 | -10/Materials | Discovered new exit (range 7) 755 | -10/Materials | Discovered new exit (range 13) 1258 | -10/Materials | Discovered new exit (range 7) 1418 | -10/Materials | Entered Mines 1479 | -10/Mines | Met a Derelict shopkeep closing up shop 1543 | -10/Mines | Deemed a non-threat by the Exiles lab entrance 1634 | -10/Mines | Identified exit to Materials 1680 | -10/Mines | Received a Mining Laser from a helpful Derelict 1941 | -10/Mines | Discovered new exit (range 8) 1969 | -10/Mines | Discovered new exit (range 5) 1983 | -10/Mines | Entered Exiles 1983 | -10/Exiles | Accompanied by 2 allies 2013 | -10/Exiles | Led the pair of lost Derelicts to a safe place 2023 | -10/Exiles | Met 8R-AWN 2053 | -10/Exiles | Met EX-HEX 2102 | -10/Exiles | Met EX-BIN 2120 | -10/Exiles | Aligned with FarCom system 2122 | -10/Exiles | Given EX-Vault access code 2178 | -10/Exiles | Opened EX-Vault 2190 | -10/Exiles | Found Prototype Device 2193 | -10/Exiles | Identified Chronowheel 2193 | -10/Exiles | Activated Chronowheel 2205 | -10/Exiles | Found Prototype Processor 2205 | -10/Exiles | Identified Modified TNC 2249 | -10/Exiles | Warned to stay clear of 0b10 Research branches 2322 | -10/Exiles | Met EX-DEC 2381 | -10/Exiles | Discovered new exit (range 10) 2402 | -10/Exiles | Left Exiles lab with Modified TNC 2402 | -10/Exiles | Entered Mines 2434 | -9/Mines | Met a Derelict bent on vengeance 2599 | -9/Mines | Learned 8 Materials zone layouts 2832 | -9/Mines | Discovered new exit (range 5) 2902 | -9/Mines | Discovered new exit (range 10) 3162 | -9/Mines | Entered Materials 3162 | -8/Materials | Evolved 4 slots: Propulsion x1, Utility x3 3163 | -8/Materials | Identified exit to Factory 3904 | -8/Materials | Build established: Hacker-Mutant 3914 | -8/Materials | System corruption reached 10% 3935 | -8/Materials | Self-destructed Last Messages --------------- R-06 Scavenger collects Terrain Scanner. Acquired 8 matter. R-06 Scavenger collects Wheel. Acquired Lgt. Armor Plating. Critical hit (Smash). Autogun destroyed. System Shield destroyed. System corrupted by crushing effect (+1). System corrupted: Matter fused (-10). Hacking Suite destroyed. System corrupted by crushing effect (+3). Modified TNC destroyed. System corrupted by crushing effect (+5). B-36 Bruiser destroyed. G-47 Trooper destroyed. Switching to secondary target: G-47 Trooper. R-06 Scavenger collects Structural Scanner. Autogun destroyed. R-06 Scavenger collects Rnf. Ion Engine. R-06 Scavenger collects Terrain Scan Processor. Map ----- +----------------------------------------------------+ | | | | | | | | | | | | | | | | | | | | | | | ????????????????#########????????????????????????? | | ????????????????# #????????????????????????? | | ????????????????# """ #?????????????#######????? | | ################# """ ########??????# #????? | | + """ #||**!!#??????#"" #????? | | ############### #| !!#??????#"T #????? | | #??###############/#### #??????#"" #????? | | +##### T # ## ######## #????? | | # # # = #????? | | # # + #????? | | !# # # """ #????? | | """ # + ############+#+# """ #????? | | """ # # #?#####?# # """ #????? | | """ # # !==!###== #?# """" # #????? | | # # !/%=|@!! #?# """" # #????? | | # ########+#######gg #?# """" #######????? | | ###########??# #?##r##?# #??????????? | | ?????????????# #??# #??# ] * #??????????? | | ?????????????# #??# #??########??????????? | | ?????????????# #??#=#????????????????????? | | ???????########/########### #????????????????????? | | ???????# # """ ###??????????????????? | | ???##### [= # "T" ""#??????????????????? | | ???# # ! == + g Y"#??????????????????? | | ???# # # ! ""#??????????????????? | | ???# # [ # ] ###??????????????????? | | ???# # # #????????????????????? | | ???# # ! # """ ###########??????????? | | ???# # = # """"" ## #??????????? | | ???# #####/##### """"" ## """ #######????? | | ######+### ### """"" ## """ ## ????? | | """ # """ ## ????? | | ] + ## """????? | | # """ ## G"????? | | ####### #####" "####### """ ## """????? | | #?????#######???#"T"#?????# """ ## ????? | | #???????????????#"""#?????# ##### #????? | | #???????????????#####?????###########??###????? | | ###########?????????????????# T #?????????? | +----------------------------------------------------+ Best States ------------- Heat Dissipation 31 Energy Generation 16 Energy Capacity 290 Matter Stores 300 Matter Capacity 300 Sight Range 16 Terrain Scan Density 10 Core Shielding 20 Propulsion Shielding 33 Evasion (%) 50 Recoil Reduction 2 Offensive Hacking 10 Defensive Hacking 10 Item Schematics ----------------- None Robot Schematics ------------------ None Fabricated ------------ Nothing Alien Tech Used ----------------- None Achievements -------------- None Challenges ------------ None Game ------ Seed FrostNovaInitializer Manual? 0 Play Time 00:21:32 Cumulative 25.9 hours Start 2024.07.10 @ 13:55:07 End 2024.07.10 @ 15:18:47 Sessions 4 Manual Loads 0 Difficulty Rogue Special Mode None Game No. 60 Rogue 59 Adventurer 1 Explorer 0 Win Type - Total 0 Types 0/0/0/0/0/0/0/0/0 Lore% 13 Gallery% 24 Achievement% 19 Wizard Run 0 Options --------- Layout 1 ASCII 0 Keyboard 0 Movement Mouse Keybinds 0 Fullscreen 2 Font 24/Terminus Map View 50x35 Zoom Use 0% Tactical HUD 0 Map Filters NONE Filters NONE Steam 1 RUN: 80e1c8a4-047d-459e-8fd5-22e77041d851